bitfinex-derivatives/quotes_ETHF0:USTF0_20240920
["timestamp","ask_amount","ask_price","bid_price","bid_amount"]
[1726870419211,1.80162,2553.1,2552.8,1.02482447]
[1726870419212,4.22790674,2553.1,2552.8,0.77925]
[1726870419412,0.39163,2553.0,2552.8,0.77925]
[1726870419812,2.44281674,2553.0,2552.8,0.77925]
[1726870420207,0.39163,2553.0,2552.8,0.77925]
[1726870420615,2.44281674,2553.0,2552.8,0.77925]
[1726870420817,0.39163,2553.0,2552.8,0.77925]
[1726870421809,2.44281674,2553.0,2552.8,0.77925]
[1726870422014,0.39163,2553.0,2552.8,1.80407447]
[1726870422619,0.39164,2553.0,2552.8,1.80407447]
[1726870425212,2.44282674,2553.0,2552.8,1.80407447]
[1726870425923,2.44282674,2553.0,2552.8,0.77925]
[1726870426120,2.44282674,2553.0,2552.8,1.80407447]
[1726870426121,3.85282674,2553.0,2552.8,1.80407447]
[1726870427325,3.46118674,2553.0,2552.8,1.80407447]
[1726870427514,3.85282674,2553.0,2552.8,1.80407447]
[1726870428207,3.85282674,2553.0,2552.8,1.41242447]
[1726870428406,3.85282674,2553.0,2552.8,1.80408447]
[1726870428807,4.24732674,2553.0,2552.8,1.80408447]
[1726870429513,2.05118674,2552.9,2552.8,0.77926]
[1726870429717,2.05118674,2552.9,2552.8,1.80408447]
[1726870430018,2.05118674,2552.9,2552.8,0.77926]
[1726870430213,2.05118674,2552.9,2552.8,1.80408447]
[1726870432420,2.05118674,2552.9,2552.4,5.18030435]
[1726870432421,1.37104,2552.4,2552.3,1.5393915]
[1726870432721,1.37104,2552.4,2551.9,0.61003056]
[1726870432722,1.37126,2552.0,2551.9,0.61003056]
[1726870432918,1.80179,2552.0,2551.5,3.2078]
[1726870433119,2.448184,2551.6,2551.5,3.2078]
[1726870433323,0.39188,2551.4,2551.3,0.7926]
[1726870433528,1.41,2551.4,2551.1,3.59972]
[1726870433725,1.41,2551.2,2551.1,3.59972]
[1726870434325,1.41,2551.3,2551.2,0.39191]
[1726870436526,0.3903,2551.8,2551.1,4.6178]
[1726870436527,1.93021967,2551.8,2551.1,4.6178]
[1726870436726,1.93021967,2551.8,2551.5,3.2078]
[1726870436727,1.41,2551.6,2551.5,3.2078]
[1726870437322,1.41,2551.6,2551.5,3.5922]
[1726870438518,1.41,2551.6,2551.5,3.9784]
[1726870439518,1.41,2551.6,2551.5,4.37026]
[1726870439824,1.80183,2551.7,2551.5,4.37026]
[1726870440620,1.80183,2551.7,2551.5,3.9784]
[1726870440621,1.41,2551.7,2551.5,3.9784]
[1726870441119,1.41,2551.7,2551.5,4.37025]
[1726870441519,1.41,2551.7,2551.6,0.39185]
[1726870441723,1.41,2551.7,2551.5,4.37025]
[1726870443028,1.41,2551.7,2551.5,1.16245]
[1726870443224,1.41,2551.7,2551.6,3.2078]
[1726870444525,1.80183,2551.7,2551.6,3.2078]
[1726870445423,1.41,2551.7,2551.6,3.2078]
[1726870446328,1.41,2551.7,2551.5,4.37026]
[1726870446523,1.41,2551.6,2551.5,3.98406]
[1726870446726,1.80185,2551.6,2551.5,3.2078]
[1726870447634,1.80185,2551.6,2551.3,0.39189]
[1726870447937,1.41,2551.4,2551.3,0.39189]
[1726870453435,1.80188,2551.4,2551.3,0.39189]
[1726870453738,1.41,2551.4,2551.3,0.39189]
[1726870454241,0.7617,2551.7,2551.2,4.008]
[1726870454539,0.7617,2551.7,2551.5,3.59966]
[1726870454540,1.80184,2551.7,2551.5,3.59966]
[1726870454833,1.80184,2551.7,2551.6,0.3995]
[1726870457038,5.72104,2551.7,2551.6,0.3995]
[1726870459734,1.80184,2551.7,2551.6,0.3995]
[1726870460133,5.72104,2551.7,2551.6,0.3995]
[1726870460939,1.80184,2551.7,2551.6,0.3995]
[1726870461140,5.72104,2551.7,2551.6,0.3995]
[1726870461747,1.80184,2551.7,2551.6,0.3995]
[1726870469838,0.39185,2551.6,2551.5,3.2078]
[1726870470043,1.41,2551.6,2551.5,3.59966]
[1726870470253,1.80185,2551.6,2551.5,3.2078]
[1726870473846,1.80185,2551.6,2551.4,0.77537]
[1726870474047,0.39184,2551.7,2551.5,3.59966]
[1726870476456,1.93175967,2551.7,2551.5,3.59966]
[1726870477353,2.448174,2551.7,2551.5,3.59966]
[1726870477550,1.53967721,2551.6,2551.5,3.59966]
[1726870477756,1.53967721,2551.6,2551.5,3.2078]
[1726870477952,0.39185,2551.6,2551.5,3.2078]
[1726870478149,2.056334,2551.6,2551.5,3.2078]
[1726870478344,2.5704175,2551.6,2551.5,3.59966]
[1726870480448,2.5704175,2551.6,2551.5,0.39186]
[1726870482252,0.39184,2551.7,2551.5,0.39186]
[1726870483156,0.39185,2551.6,2551.4,3.59967]
[1726870483353,4.37342714,2551.5,2551.4,3.2078]
[1726870483554,1.80186,2551.5,2551.4,3.2078]
[1726870484051,1.41,2551.5,2551.1,0.39192]
[1726870484255,2.0572319,2551.2,2551.1,0.39192]
[1726870484456,2.0572319,2551.2,2551.1,1.66651171]
[1726870484653,3.98153987,2551.3,2551.2,0.39191]
[1726870485162,2.57153987,2551.3,2551.2,0.39191]
[1726870485367,4.37342987,2551.4,2551.2,0.39191]
[1726870486565,4.37342987,2551.4,2551.3,3.2078]
[1726870486959,1.80189,2551.4,2551.3,3.2078]
[1726870487157,4.37307222,2551.4,2551.3,3.2078]
[1726870487457,4.37307222,2551.4,2551.2,0.39191]
[1726870489464,2.05689778,2551.3,2551.2,0.39191]
[1726870489760,2.05689778,2551.3,2551.2,1.66627371]
[1726870489955,2.05689778,2551.3,2551.2,0.39191]
[1726870490466,2.05689778,2551.3,2551.2,1.66625545]
[1726870490657,2.05689778,2551.3,2551.2,0.39191]
[1726870491564,2.05689778,2551.3,2551.2,1.66624028]
[1726870491765,2.05689778,2551.3,2551.2,1.66622854]
[1726870491964,2.05689778,2551.3,2551.2,1.66623377]
[1726870492863,2.05689778,2551.3,2551.2,0.39191]
[1726870493071,2.05689778,2551.3,2551.2,1.66621583]
[1726870493560,2.05689778,2551.3,2551.2,1.66620906]
[1726870493871,2.05689778,2551.3,2551.2,1.66621922]
[1726870494258,2.05689778,2551.3,2551.2,1.66619446]
[1726870494465,2.05689778,2551.3,2551.2,1.66617285]
[1726870494767,2.05689778,2551.3,2551.2,0.39191]
[1726870496168,2.05689778,2551.3,2551.2,1.66611232]
[1726870496467,2.05689778,2551.3,2551.2,0.39191]
[1726870498761,2.05689778,2551.4,2551.3,0.39189]
[1726870498960,2.96304222,2551.6,2551.4,0.39188]
[1726870499162,2.05642781,2551.5,2551.4,0.39188]
[1726870501276,2.05642781,2551.5,2551.4,3.59968]
[1726870502579,1.41,2551.7,2551.6,0.39185]
[1726870502580,1.54221037,2551.7,2551.6,0.39185]
[1726870502774,1.54221037,2551.9,2551.8,0.39182]
[1726870502973,1.54221037,2551.9,2551.8,6.4144239]
[1726870503177,1.54221037,2552.0,2551.9,0.3918]
[1726870503486,1.54221037,2552.0,2551.9,5.7202]
[1726870503674,1.54221037,2552.1,2552.0,0.39179]
[1726870503869,1.54221037,2552.2,2552.1,0.39177]
[1726870504069,1.54221037,2552.2,2552.1,3.59957]
[1726870506383,2.95221037,2552.3,2552.1,3.59957]
[1726870506577,1.54221037,2552.2,2552.1,3.59957]
[1726870507676,2.95221037,2552.3,2552.1,3.59957]
[1726870509080,2.95221037,2552.3,2552.1,0.39177]
[1726870509577,2.95221037,2552.3,2552.1,3.59957]
[1726870509886,0.39178,2552.1,2551.8,3.59961]
[1726870510071,1.41,2552.0,2551.9,0.3918]
[1726870510276,1.41,2552.0,2551.8,3.59961]
[1726870512584,1.41,2552.0,2551.9,0.3918]
[1726870512780,1.93399037,2552.1,2551.9,0.3918]
[1726870512781,3.34399037,2552.1,2551.9,0.3918]
[1726870513379,1.80178,2552.1,2552.0,0.4037]
[1726870513888,3.34399037,2552.1,2552.0,0.4037]
[1726870514481,1.80178,2552.1,2552.0,0.4037]
[1726870515082,3.34399037,2552.1,2552.0,0.4037]
[1726870515387,1.80178,2552.1,2552.0,0.4037]
[1726870515975,1.41,2552.1,2552.0,0.79549]
[1726870516787,1.80177,2552.1,2552.0,0.4037]
[1726870517792,1.80177,2552.1,2552.0,0.79549]
[1726870518583,1.54221037,2552.2,2552.1,0.39177]
[1726870518790,3.34396037,2552.3,2552.1,3.59957]
[1726870518989,3.74066037,2552.3,2552.1,3.59957]
[1726870519594,1.54221037,2552.2,2552.1,3.59957]
[1726870521487,1.54221037,2552.2,2552.1,4.00797]
[1726870522195,3.74066037,2552.3,2552.1,4.00797]
[1726870523094,3.74066037,2552.3,2552.1,4.00796]
[1726870523295,3.74066037,2552.3,2552.2,0.3776]
[1726870523996,0.39176,2552.2,2552.1,3.2078]
[1726870524195,3.34397037,2552.2,2552.1,3.2078]
[1726870525091,2.95221037,2552.2,2552.1,3.59957]
[1726870525894,3.34397037,2552.2,2552.1,3.59957]
[1726870526096,3.34397037,2552.2,2552.1,3.2078]
[1726870526396,1.54221037,2552.2,2552.1,3.59957]
[1726870526592,1.93396037,2552.3,2552.1,3.2078]
[1726870526792,1.80176,2552.2,2552.1,3.2078]
[1726870526983,2.19336,2552.2,2552.1,3.2078]
[1726870527695,0.39178,2552.1,2551.9,0.4024]
[1726870527892,2.17748,2552.1,2551.9,0.79419]
[1726870528489,1.7857,2552.1,2551.9,0.79419]
[1726870528694,2.17748,2552.1,2551.9,0.79419]
[1726870530703,1.7857,2552.1,2551.9,0.4024]
[1726870531199,3.32791037,2552.1,2551.9,0.4024]
[1726870531403,1.7857,2552.1,2551.9,0.4024]
[1726870532211,3.32791037,2552.1,2551.9,0.4024]
[1726870532502,3.71969037,2552.1,2551.9,0.79419]
[1726870533805,3.71969037,2552.1,2552.0,0.4057]
[1726870534004,2.30969037,2552.1,2552.0,0.79749]
[1726870534198,0.39178,2552.1,2552.0,0.4057]
[1726870535402,0.39178,2552.1,2552.0,0.79749]
[1726870536313,0.39178,2552.1,2552.0,0.4057]
[1726870537214,1.93399037,2552.1,2552.0,0.4057]
[1726870537708,1.93399037,2552.1,2552.0,0.79749]
[1726870539117,1.93399037,2552.1,2552.0,0.4057]
[1726870541721,2.44820781,2552.1,2552.0,0.4057]
[1726870542616,2.44820781,2552.1,2552.0,0.79749]
[1726870544117,0.39178,2552.1,2552.0,0.4057]
[1726870545015,0.39178,2552.1,2552.0,0.79749]
[1726870545214,2.96296222,2552.1,2552.0,0.4057]
[1726870545816,0.39178,2552.1,2552.0,0.4057]
[1726870546025,2.96296222,2552.1,2552.0,0.4057]
[1726870546416,0.39178,2552.1,2552.0,3.6135]
[1726870546817,2.96296222,2552.1,2552.0,3.6135]
[1726870548527,2.96296222,2552.1,2552.0,0.4057]
[1726870550225,10.89784,2552.1,2551.6,1.90608179]
[1726870550524,10.89784,2552.1,2551.3,1.54008179]
[1726870550525,0.39188,2551.4,2551.3,1.54008179]
[1726870550718,3.46627551,2551.4,2551.3,0.3776]
[1726870550922,0.39189,2551.3,2551.2,3.2078]
[1726870551233,2.44698356,2551.3,2551.2,3.2078]
[1726870551939,0.39189,2551.3,2551.2,3.2078]
[1726870552329,2.44579492,2551.3,2551.2,3.2078]
[1726870553722,2.44579492,2551.3,2551.0,0.76954]
[1726870554029,1.41,2551.1,2551.0,0.76954]
[1726870561535,1.80192,2551.1,2551.0,0.3776]
[1726870561736,1.80192,2551.1,2551.0,0.76954]
[1726870561737,1.7832,2551.1,2551.0,0.76954]
[1726870562537,1.7832,2551.1,2550.9,3.2078]
[1726870562538,0.39194,2551.0,2550.9,3.2078]
[1726870562743,0.39194,2551.0,2550.4,3.2078]
[1726870562744,0.39202,2550.5,2550.4,3.2078]
[1726870562935,0.39203,2550.4,2550.2,0.77085]
[1726870563144,1.80205,2550.3,2550.2,0.3788]
[1726870563445,1.41,2550.3,2550.2,0.77086]
[1726870563741,1.41,2550.3,2550.2,0.3788]
[1726870563742,1.80205,2550.3,2550.2,0.3788]
[1726870563937,2.34195152,2550.7,2550.2,0.3788]
[1726870564143,2.34195152,2550.7,2550.4,3.59982]
[1726870564144,3.0068,2550.7,2550.4,3.59982]
[1726870564346,3.0068,2550.7,2550.5,0.39201]
[1726870564537,0.392,2550.6,2550.4,3.59982]
[1726870565939,1.80202,2550.5,2550.4,3.59982]
[1726870566541,1.80202,2550.5,2550.4,3.2078]
[1726870571854,1.41,2550.5,2550.4,3.59983]
[1726870576147,0.79627,2550.9,2550.7,0.39198]
[1726870576345,1.41,2550.9,2550.8,0.39197]
[1726870576550,1.41,2550.9,2550.8,1.17427]
[1726870577145,1.41,2550.9,2550.8,0.7823]
[1726870577757,1.41,2550.9,2550.8,1.17427]
[1726870578054,5.495,2551.1,2551.0,0.39194]
[1726870578258,1.41,2551.1,2551.0,3.59974]
[1726870578863,1.41,2551.1,2551.0,3.2078]
[1726870579356,1.41,2551.2,2551.0,3.2078]
[1726870580251,1.41,2551.2,2551.1,3.59972]
[1726870583057,1.8161,2551.4,2551.3,0.39189]
[1726870583263,0.375,2551.6,2551.5,0.39186]
[1726870583562,1.785,2551.8,2551.4,3.2078]
[1726870583754,1.41,2551.7,2551.5,0.3831]
[1726870583956,1.41,2551.7,2551.6,0.39184]
[1726870584164,0.76683,2551.8,2551.6,0.80214]
[1726870584464,1.41,2551.7,2551.6,0.80214]
[1726870585466,1.41,2551.7,2551.6,0.4103]
[1726870585660,1.41,2551.7,2551.6,0.80215]
[1726870586565,1.41,2551.7,2551.6,0.4103]
[1726870590166,1.41,2551.7,2551.6,3.6181]
[1726870590664,1.80183,2551.7,2551.6,3.6181]
[1726870590973,1.41,2551.7,2551.6,0.4103]
[1726870592056,1.41,2551.7,2551.3,3.2078]
[1726870592262,0.79395,2551.6,2551.4,0.4108]
[1726870592457,0.39188,2551.4,2551.3,3.2078]
[1726870592657,0.3919,2551.3,2551.1,1.20052]
[1726870592862,0.7857,2551.3,2551.1,0.8086]
[1726870593467,1.41,2551.2,2551.1,0.8086]
[1726870594660,0.3938,2551.3,2551.2,0.39191]
[1726870594869,0.3798,2551.5,2551.2,0.39191]
[1726870594870,2.30842152,2551.5,2551.2,0.39191]
[1726870595068,1.41,2551.4,2551.3,3.2078]
[1726870595873,1.80188,2551.4,2551.2,0.77391]
[1726870596966,2.94675152,2551.4,2551.3,0.39189]
[1726870597271,1.41,2551.4,2551.3,3.2078]
[1726870599369,1.80188,2551.4,2551.3,3.2078]
[1726870601071,0.3919,2551.3,2551.1,0.8086]
[1726870601278,1.41,2551.2,2551.1,0.8086]
[1726870603775,1.80191,2551.2,2551.1,0.4119]
[1726870603973,1.41,2551.2,2551.1,0.4119]
[1726870604281,1.80189,2551.3,2551.1,0.80382]
[1726870604781,1.80189,2551.3,2551.1,0.4119]
[1726870607080,1.41,2551.2,2551.1,0.4119]
[1726870607268,1.80191,2551.2,2551.1,0.4119]
[1726870608175,1.41,2551.2,2551.1,0.4119]
[1726870609284,1.80191,2551.2,2551.1,0.4119]
[1726870609681,3.33866152,2551.2,2550.9,0.78885]
[1726870609889,1.1575,2551.1,2551.0,0.39194]
[1726870610477,0.7633,2551.1,2551.0,0.39194]
[1726870610680,0.3754,2551.1,2551.0,0.39194]
[1726870611084,0.3754,2551.1,2551.0,3.59974]
[1726870611593,0.76732,2551.1,2551.0,3.2078]
[1726870611774,0.39202,2550.5,2550.4,3.5738]
[1726870611981,0.39203,2550.4,2550.3,0.4116]
[1726870612286,1.80203,2550.4,2550.3,0.4116]
[1726870613793,0.39206,2550.2,2550.1,3.2078]
[1726870613980,1.80206,2550.2,2550.1,3.2078]
[1726870615072,1.80206,2550.2,2550.0,0.39209]
[1726870615288,1.41,2550.2,2550.0,0.39209]
[1726870615490,1.41,2550.2,2550.1,3.2078]
[1726870617387,1.41,2550.2,2550.1,3.59988]
[1726870618990,1.41,2550.3,2550.2,0.39206]
[1726870619286,1.80202,2550.5,2550.2,0.39206]
[1726870619584,1.41,2550.5,2550.4,3.2078]
[1726870619886,1.41,2550.5,2550.4,3.59983]
[1726870620280,1.41,2550.5,2550.4,3.2078]
[1726870620592,1.41,2550.5,2550.4,3.59983]
[1726870621585,5.495,2550.8,2550.6,0.39199]
[1726870621782,5.495,2550.8,2550.7,3.616]
[1726870621990,5.88697,2550.8,2550.7,3.616]
[1726870623078,5.88697,2550.8,2550.7,0.4082]
[1726870623479,5.495,2550.8,2550.5,0.8016]
[1726870623689,1.802,2550.6,2550.5,0.3981]
[1726870624184,1.41,2550.6,2550.5,0.3981]
[1726870625483,1.802,2550.6,2550.5,0.3981]
[1726870626282,1.41,2550.6,2550.5,0.3981]
[1726870631195,1.41,2550.6,2550.5,3.6059]
[1726870632398,1.41,2550.6,2550.5,0.3981]
[1726870633692,1.41,2550.6,2550.5,3.6059]
[1726870634207,1.41,2550.6,2550.5,3.99792]
[1726870634403,1.53556516,2551.0,2550.5,7.9381]
[1726870634592,1.41,2550.9,2550.7,0.39198]
[1726870635003,1.41,2550.9,2550.8,3.2078]
[1726870636606,1.41,2550.9,2550.5,0.8095]
[1726870636906,1.41,2550.8,2550.5,0.8095]
[1726870637103,1.41,2550.8,2550.7,3.59978]
[1726870646111,1.41,2550.8,2550.7,3.2078]
[1726870646404,1.41,2550.8,2550.5,0.8095]
[1726870646797,1.41,2550.8,2550.7,3.59979]
[1726870648400,2.94556516,2550.8,2550.7,3.59979]
[1726870648910,1.41,2550.8,2550.7,3.59979]
[1726870649406,2.94556516,2550.8,2550.6,3.2078]
[1726870650505,2.94556516,2550.8,2550.7,0.39199]
[1726870660012,3.33753516,2550.8,2550.7,0.39199]
[1726870660313,1.80197,2550.8,2550.7,0.39199]
[1726870660608,1.80197,2550.8,2550.6,3.2078]
[1726870660916,1.53876342,2550.7,2550.6,3.5998]
[1726870661516,0.39202,2550.5,2550.4,1.027034]
[1726870661710,1.93102194,2550.5,2550.3,5.024374]
[1726870661914,1.41,2550.4,2550.3,5.024374]
[1726870662612,1.53900194,2550.4,2550.3,3.99734]
[1726870662813,1.53900194,2550.4,2550.3,4.38844]
[1726870664415,1.7931,2550.5,2550.4,0.39203]
[1726870665112,1.7931,2550.5,2550.3,4.38844]
[1726870665315,1.7931,2550.5,2550.3,3.9964]
[1726870666015,1.41,2550.4,2550.3,3.9964]
[1726870666321,0.39205,2550.3,2550.1,0.39207]
[1726870666515,1.41,2550.2,2550.1,0.39207]
[1726870668218,1.41,2550.2,2550.0,3.2078]
[1726870668422,1.80207,2550.2,2550.0,0.39209]
[1726870668622,2.56917,2550.2,2550.0,0.39209]
[1726870668823,2.56917,2550.2,2550.0,3.59989]
[1726870669123,0.3768,2550.1,2550.0,3.2078]
[1726870669720,0.3768,2550.1,2550.0,3.59989]
[1726870670315,0.76888,2550.1,2550.0,3.2078]
[1726870670713,0.39209,2550.0,2549.9,1.1589]
[1726870671021,5.3316,2550.0,2549.7,3.2078]
[1726870671222,1.80212,2549.8,2549.7,3.2078]
[1726870671428,1.41,2549.8,2549.7,3.2078]
[1726870671620,5.3316,2549.8,2549.7,3.2078]
[1726870671819,2.18652,2549.8,2549.7,3.2078]
[1726870672926,1.7944,2549.8,2549.7,3.2078]
[1726870673127,2.18652,2549.8,2549.7,3.2078]
[1726870673325,7.08844,2549.8,2549.7,3.2078]
[1726870673517,6.10812,2549.8,2549.7,3.2078]
[1726870673925,6.49772,2549.8,2549.7,3.2078]
[1726870674221,7.47804,2549.8,2549.7,3.2078]
[1726870674930,12.49772,2549.8,2549.7,3.2078]
[1726870675133,6.49772,2549.8,2549.7,3.2078]
[1726870677223,7.47804,2549.8,2549.7,3.2078]
[1726870677423,12.1056,2549.8,2549.1,4.972103]
[1726870677743,1.80222,2549.2,2549.1,1.026403]
[1726870678839,1.80222,2549.2,2549.0,3.9757]
[1726870679637,0.39223,2549.1,2549.0,3.5974]
[1726870679840,0.39223,2549.1,2549.0,3.2078]
[1726870682637,0.39223,2549.1,2549.0,3.9844]
[1726870684142,0.39223,2549.1,2549.0,3.2078]
[1726870684345,1.37282,2549.1,2549.0,3.2078]
[1726870685837,0.39223,2549.1,2549.0,3.2078]
[1726870687144,0.98059,2549.1,2548.7,0.39229]
[1726870687448,0.8101,2549.0,2548.8,0.4002]
[1726870687836,0.39227,2548.9,2548.8,0.4002]
[1726870688545,1.80227,2548.9,2548.8,0.4002]
[1726870688742,0.39229,2548.7,2548.6,0.3891]
[1726870688939,1.80229,2548.7,2548.6,0.7893]
[1726870689143,0.39231,2548.6,2548.5,0.3791]
[1726870689338,1.20681,2548.6,2548.5,0.3791]
[1726870689541,0.39232,2548.5,2548.4,0.4002]
[1726870689751,0.39235,2548.3,2548.2,0.4028]
[1726870689952,3.45235,2548.3,2548.2,0.4028]
[1726870690648,3.06,2548.3,2548.2,0.4028]
[1726870690856,3.45235,2548.3,2548.2,3.6106]
[1726870691248,3.06,2548.3,2548.2,4.00297]
[1726870691649,3.45235,2548.3,2548.2,3.6106]
[1726870692243,3.06,2548.3,2548.2,3.6106]
[1726870692451,3.06,2548.3,2548.2,4.00297]
[1726870692650,3.06,2548.3,2548.2,3.6106]
[1726870693243,0.39234,2548.4,2548.2,4.00296]
[1726870693448,3.06,2548.6,2548.2,4.00296]
[1726870693449,0.39233,2548.5,2548.3,0.39235]
[1726870693655,0.39233,2548.5,2548.4,0.3998]
[1726870694555,0.39232,2548.5,2548.4,0.3998]
[1726870695556,3.45232,2548.6,2548.4,0.3998]
[1726870695854,3.45232,2548.6,2548.4,0.79214]
[1726870696048,3.45232,2548.6,2548.5,0.4112]
[1726870696749,0.39222,2549.2,2548.5,7.543]
[1726870696946,0.39222,2549.2,2548.8,3.2078]
[1726870697141,3.06,2549.0,2548.9,0.8191]
[1726870697342,3.45225,2549.0,2548.9,0.8191]
[1726870697947,0.39228,2548.8,2548.6,0.4096]
[1726870698245,3.45228,2548.8,2548.6,1.2255]
[1726870699359,3.06,2548.8,2548.6,1.61781]
[1726870700843,3.45226,2549.0,2548.7,0.39229]
[1726870701856,3.45226,2549.0,2548.8,3.2078]
[1726870702244,3.45226,2549.0,2548.9,0.3827]
[1726870703148,3.06,2549.0,2548.9,0.3827]
[1726870704053,3.45225,2549.0,2548.9,0.3827]
[1726870705150,3.06,2549.0,2548.9,0.3827]
[1726870705454,3.45225,2549.0,2548.9,0.3827]
[1726870705654,3.06,2549.0,2548.9,0.3827]
[1726870712062,1.41,2549.0,2548.9,0.3827]
[1726870715567,1.80225,2549.0,2548.9,0.3827]
[1726870716860,2.04787793,2549.3,2548.9,0.3827]
[1726870716861,1.53179274,2549.1,2548.9,0.3827]
[1726870717062,0.39224,2549.1,2549.0,0.7784]
[1726870718267,1.80224,2549.1,2549.0,0.3995]
[1726870718470,0.39225,2549.0,2548.9,0.3827]
[1726870718678,1.92404274,2549.0,2548.9,0.3827]
[1726870718964,0.39225,2549.0,2548.9,0.3827]
[1726870719470,1.92404274,2549.0,2548.9,0.3827]
[1726870722070,2.44012793,2549.0,2548.9,0.3827]
[1726870723974,2.44012793,2549.0,2548.9,0.7586]
[1726870726482,2.44065569,2549.0,2548.9,0.7586]
[1726870727772,1.53656262,2549.0,2548.9,0.7586]
[1726870727973,1.53656262,2549.1,2548.9,5.072]
[1726870728276,1.53656262,2549.2,2549.1,0.39223]
[1726870728572,3.85060569,2549.3,2549.1,3.60003]
[1726870728781,1.53651256,2549.2,2549.1,3.60003]
[1726870728964,1.53651256,2549.2,2549.1,3.2078]
[1726870729168,1.53651256,2549.2,2549.1,3.60003]
[1726870730070,3.33871256,2549.3,2549.1,3.2078]
[1726870730376,2.94651256,2549.3,2549.1,3.2078]
[1726870730677,2.94651256,2549.3,2549.1,3.60002]
[1726870731779,2.94651256,2549.3,2549.2,0.39222]
[1726870731969,2.94651256,2549.3,2549.1,3.60002]
[1726870733077,1.53651256,2549.4,2549.2,0.39222]
[1726870733377,1.53651256,2549.4,2549.3,0.7675]
[1726870734182,1.92870256,2549.4,2549.3,0.7675]
[1726870734874,1.53651256,2549.4,2549.3,0.7675]
[1726870735076,2.94651256,2549.4,2549.3,0.7675]
[1726870735270,6.86891256,2549.4,2548.8,1.026403]
[1726870735474,1.41,2549.0,2548.9,0.76775]
[1726870736374,2.94664187,2549.0,2548.9,0.76775]
[1726870736677,1.41,2549.0,2548.9,0.76775]
[1726870736870,1.41,2549.0,2548.9,0.3755]
[1726870737077,2.94664187,2549.0,2548.9,0.3755]
[1726870737477,2.94664187,2549.0,2548.9,0.76776]
[1726870740376,1.41,2549.0,2548.9,0.76776]
[1726870740578,2.94805529,2549.0,2548.9,0.76776]
[1726870740878,1.53805529,2549.0,2548.9,0.76776]
[1726870741083,1.53805529,2549.1,2549.0,0.39225]
[1726870741277,1.53805529,2549.1,2549.0,7.52325]
[1726870741498,2.04840569,2549.3,2549.0,7.52325]
[1726870741499,1.53805529,2549.2,2549.1,1.37282]
[1726870741785,0.39214,2549.7,2549.3,0.3922]
[1726870741786,1.53805529,2549.4,2549.3,0.3922]
[1726870741984,1.53805529,2549.5,2549.4,0.39219]
[1726870742478,1.53805529,2549.5,2549.4,4.71619]
[1726870742687,1.53805529,2549.6,2549.5,0.39217]
[1726870743185,1.53846044,2549.6,2549.5,0.39217]
[1726870744675,1.53846044,2549.7,2549.5,0.39217]
[1726870745381,3.34058044,2549.8,2549.5,0.39217]
[1726870745589,1.53846044,2549.7,2549.5,0.39217]
[1726870746489,3.34058044,2549.8,2549.5,0.39217]
[1726870750990,1.80212,2549.8,2549.5,0.39217]
[1726870751498,3.34058044,2549.8,2549.5,0.39217]
[1726870751694,1.80212,2549.8,2549.5,0.39217]
[1726870751990,3.34058044,2549.8,2549.5,0.39217]
[1726870752195,1.53846044,2549.7,2549.5,0.39217]
[1726870752401,3.34058044,2549.8,2549.5,0.39217]
[1726870752688,1.53846044,2549.7,2549.5,0.39217]
[1726870753392,3.34058044,2549.8,2549.5,0.39217]
[1726870753898,2.94846044,2549.8,2549.5,0.39217]
[1726870754283,2.94846044,2549.8,2549.6,0.39215]
[1726870754284,3.34059044,2549.8,2549.6,0.39215]
[1726870754690,3.34059044,2549.8,2549.7,0.406]
[1726870756095,3.34058044,2549.8,2549.7,3.6138]
[1726870756295,2.94846044,2549.8,2549.7,4.00594]
[1726870758401,2.94846044,2549.8,2549.7,0.79814]
[1726870758700,2.94846044,2549.8,2549.7,0.406]
[1726870759098,2.94846044,2549.8,2549.7,0.7828]
[1726870759500,2.94846044,2549.8,2549.7,1.17494]
[1726870759701,1.53846044,2549.8,2549.7,1.17494]
[1726870760201,3.34057044,2549.9,2549.7,1.54674]
[1726870760587,1.80211,2549.9,2549.7,1.54674]
[1726870762199,3.34057044,2549.9,2549.7,1.54674]
[1726870762402,1.80211,2549.9,2549.7,1.54674]
[1726870767298,3.34057044,2549.9,2549.7,1.54674]
[1726870767897,1.80211,2549.9,2549.7,1.54674]
[1726870768203,3.34057044,2549.9,2549.7,1.54674]
[1726870768705,2.94846044,2549.9,2549.8,0.39212]
[1726870768903,1.41,2549.9,2549.8,0.39212]
[1726870769102,1.80211,2549.9,2549.8,0.39212]
[1726870769299,3.34057044,2549.9,2549.8,0.39212]
[1726870770900,1.80211,2549.9,2549.7,1.1546]
[1726870771395,3.34057044,2549.9,2549.7,1.1546]
[1726870772511,3.34057044,2549.9,2549.8,0.39212]
[1726870774822,2.94846044,2549.9,2549.8,0.39212]
[1726870775316,1.41,2549.9,2549.8,0.39212]
[1726870781815,2.95002601,2549.9,2549.8,0.39212]
[1726870782120,1.41,2549.9,2549.8,0.39212]
[1726870782309,2.9504892,2549.9,2549.8,0.39212]
[1726870782913,2.9504892,2549.9,2549.5,0.39216]
[1726870782914,1.41,2549.9,2549.5,0.39216]
[1726870783121,1.41,2549.6,2549.5,0.79727]
[1726870783719,2.95046602,2549.6,2549.5,0.79727]
[1726870783915,1.41,2549.6,2549.5,0.79727]
[1726870784113,2.95046602,2549.6,2549.5,0.79727]
[1726870785219,2.95046602,2549.6,2549.5,1.8250539]
[1726870785220,1.41,2549.6,2549.5,1.8250539]
[1726870785723,1.41,2549.6,2549.5,5.0328539]
[1726870786529,2.95273474,2549.6,2549.5,6.30765953]